[Event "USA Championship 2022"]
[Site "Saint Louis"]
[Date "2022.10.17"]
[Round "11.4"]
[White "Dominguez Perez, Leinier"]
[Black "Yoo, Christopher Woojin"]
[Result "1-0"]
[ECO "B01"]
[WhiteElo "2747"]
[BlackElo "2563"]
[Annotator "TA"]
[PlyCount "261"]
[EventDate "2022.09.05"]
[EventType "tourn"]
[EventCountry "USA"]
[SourceTitle "playchess.com"]
[Source "ChessBase"]
[SourceQuality "1"]
[TimeControl "40/5400+30:1800+30"]

{[%evp 64,261,175,187,176,170,174,187,195,175,202,206,206,200,200,197,214,214,214,214,214,214,214,213,214,214,214,214,214,214,289,213,256,214,214,214,214,213,214,214,214,214,214,214,214,214,213,193,193,193,193,193,214,193,214,214,214,214,206,206,347,345,352,325,332,214,214,213,214,214,213,213,371,332,315,302,342,326,303,296,289,289,289,289,300,289,289,295,326,301,359,326,376,371,368,359,359,356,352,352,352,352,352,316,311,311,311,289,289,218,218,218,260,218,357,331,382,337,367,218,384,218,325,218,218,212,202,0,382,322,361,303,1039,1039,1039,1039,1039,702,893,786,922,922,851,202,202,202,287,259,929,900,918,883,786,768,761,212,212,212,212,212,597,604,595,595,582,577,564,553,829,561,1079,204,29967,29966,29965,29967,29955,160,160,160,29971,29972,29972,29973,29973,29974,29973,29974,29978,29979,29979,29978,29979,29980,29981,29982,29981,29982,29984,29972]} 1. e4 {[%emt 0:04:11]} d5 {[%emt 0:00:42]} 2. exd5 {[%emt 0:00:09]} Qxd5 {[%emt 0:00:04]} 3. Nc3 {[%emt 0:00:06]} Qd6 {[%emt 0:00:07]} 4. d4 {[%emt 0:00:32]} Nf6 {[%emt 0:00:05]} 5. Nf3 {[%emt 0:00:22]} g6 {[%emt 0:00:08]} 6. Nb5 {[%emt 0:03:06]} Qb6 {[%emt 0:00:04]} 7. Na3 {[%emt 0:01:01]} Be6 {[%emt 0:11:43]} 8. Nc4 {[%emt 0:26:56]} Bxc4 {[%emt 0:00:13]} 9. Bxc4 {[%emt 0:00:05]} Qb4+ {[%emt 0:00:59]} 10. Nd2 {[%emt 0:00:02]} Bh6 {[%emt 0:02:12]} 11. Qe2 {[%emt 0:00:05]} Bxd2+ {[%emt 0:10:19]} 12. Bxd2 {[%emt 0:00:01]} Qxb2 {[%emt 0:00:11]} 13. O-O {[%emt 0:00:07]} Qxd4 {[%emt 0:00:35]} 14. Rab1 {[%emt 0:09:28]} Qe4 {[%emt 0:09:42]} 15. Bc3 {[%emt 0:03:46]} Qxe2 {[%emt 0:06:13]} 16. Bxe2 {[%emt 0:00:12]} b6 {[%emt 0:00:22]} 17. Bf3 {[%emt 0:09:16]} c6 {[%emt 0:00:14]} 18. Rfe1 {[%emt 0:00:05]} O-O {[%emt 0:00:25]} 19. Bb2 {[%emt 0:08:14]} Rc8 {[%emt 0:08:47]} 20. Rxe7 {[%emt 0:00:58]} Nd5 {[%emt 0:00:06]} 21. Rb7 {[%emt 0:07:40]} Na6 {[%emt 0:03:29]} 22. c4 {[%emt 0:01:57]} Ndb4 {[%emt 0:05:44]} 23. Bf6 {[%emt 0:03:38]} Nxa2 {[%emt 0:02:05]} 24. Rd7 {[%emt 0:02:08]} N2b4 {[%emt 0:01:03]} 25. Rd6 {[%emt 0:00:34]} Rab8 {[%emt 0:02:22]} 26. Rd7 {[%emt 0:00:33]} Ra8 {[%emt 0:01:38]} 27. Rd6 {[%emt 0:00:02]} Rab8 {[%emt 0:01:18]} 28. g4 {[%emt 0:03:55]} c5 {[%emt 0:06:39]} 29. Rd7 {[%emt 0:02:43]} b5 {[%emt 0:09:48]} 30. cxb5 {[%emt 0:01:39]} Nc7 {[%emt 0:00:08]} 31. Be5 {[%emt 0:02:24]} Nxb5 {[%emt 0:00:09]} 32. Bxb8 {[%emt 0:00:30]} Rxb8 {[%emt 0:00:03]} 33. Bd5 {[%emt 0:03:17]} Rf8 {[%emt 0:00:29]} 34. Rc1 {[%emt 0:03:18]} Nxd5 {[%emt 0:03:03]} 35. Rxd5 {[%emt 0:00:04]} Nd4 {[%emt 0:00:28]} 36. Rcxc5 {[%emt 0:01:00]} Ne2+ {[%emt 0:00:08]} 37. Kf1 {[%emt 0:00:15]} Nf4 {[%emt 0:00:03]} 38. Rd1 $1 {[%emt 0:01:48]} Rb8 {[%emt 0:00:39]} 39. Rc4 {[%emt 0:02:09]} g5 {[%emt 0:01:59]} 40. h4 $1 {[%emt 0:01:41]} h6 {[%emt 0:00:25]} 41. hxg5 {[%emt 0:01:46]} hxg5 {[%emt 0:00:04]} 42. Rc5 {[%emt 0:00:06]} Ne6 {[%emt 0:07:39]} 43. Ra5 {[%emt 0:00:11]} Rb4 {[%emt 0:01:39]} 44. f3 {[%emt 0:00:24]} (44. Rxa7 $6 Rxg4 45. Rd5 (45. Rdd7 Rf4 $16) 45... Rf4) 44... Rb3 {[%emt 0:04:14]} 45. Kf2 {[%emt 0:00:23]} (45. Rxa7 $6 Rxf3+ 46. Kg2 Rf4 $14) 45... Rb2+ {[%emt 0:00:38]} 46. Ke3 {[%emt 0:00:30]} a6 {[%emt 0:00:07]} 47. Rd3 {[%emt 0:03:05]} ({Don't play} 47. Rxa6 Rb3+ 48. Kf2 (48. Rd3 $2 Rxd3+ 49. Ke2 Rb3 $19) 48... Rb2+ 49. Ke1 Rb3 $18) 47... Rb8 {[%emt 0:05:25]} 48. Rda3 {[%emt 0:01:29]} ({Less strong is} 48. Rxa6 Nc5 49. Ra5 Nxd3 $14) 48... Kg7 {[%emt 0:01:13]} 49. Rxa6 {[%emt 0:00:46]} Nf4 {[%emt 0:00:02]} 50. R6a5 {[%emt 0:04:12]} Kg6 {[%emt 0:00:26]} 51. Ra8 {[%emt 0:02:01]} Rb7 {[%emt 0:01:26]} 52. Rg8+ {[%emt 0:02:12]} Kf6 {[%emt 0:01:09]} 53. Ra6+ {[%emt 0:00:31]} Ne6 {[%emt 0:00:04]} 54. Rd8 {[%emt 0:00:25]} Kg7 {[%emt 0:02:34]} 55. Rd5 {[%emt 0:01:11]} Rb3+ {[%emt 0:01:11]} 56. Kf2 {[%emt 0:00:06]} Rb2+ {[%emt 0:00:03]} 57. Kg3 {[%emt 0:00:40]} Re2 {[%emt 0:00:43]} 58. Rad6 {[%emt 0:04:30]} Kg6 {[%emt 0:02:08]} 59. Rd2 {[%emt 0:00:21]} Re1 {[%emt 0:00:26]} 60. Ra6 {[%emt 0:00:53]} Rb1 {[%emt 0:01:24]} 61. Ra7 {[%emt 0:02:12]} Rb4 {[%emt 0:01:51]} (61... Rb6 {was necessary.} 62. Rda2 Nc5) 62. Rdd7 $18 {[%emt 0:01:37]} Rf4 {[%emt 0:00:17]} 63. Kf2 {[%emt 0:02:29]} Rf6 {[%emt 0:02:02]} 64. Rd5 {[%emt 0:02:12]} Nf4 {[%emt 0:00:14]} 65. Rda5 {[%emt 0:00:41]} Nh3+ {[%emt 0:02:21]} 66. Kg3 {[%emt 0:00:37]} Nf4 {[%emt 0:00:09]} 67. R7a6 {[%emt 0:01:38]} Ne6 $2 {[%emt 0:00:11]} (67... Re6 {is a better defense.} 68. Rxe6+ fxe6) 68. Re5 $18 {[%emt 0:01:05]} Rf4 {[%emt 0:00:35]} 69. Re4 {[%emt 0:00:27]} Rf6 {[%emt 0:00:32]} 70. Ra5 {[%emt 0:00:47]} Kg7 {[%emt 0:01:19]} 71. Ree5 {[%emt 0:00:21]} Rh6 {[%emt 0:00:24]} 72. Ra7 {[%emt 0:00:24]} Kg6 {[%emt 0:00:24]} 73. Rf5 {[%emt 0:00:42]} Rh7 {[%emt 0:00:15]} 74. Kf2 {[%emt 0:00:40]} Nd4 {[%emt 0:01:50]} 75. Rd5 {[%emt 0:01:07]} Ne6 {[%emt 0:00:23]} 76. Ke3 {[%emt 0:00:42]} Rh8 {[%emt 0:01:05]} 77. Rf5 {[%emt 0:00:02]} Re8 {[%emt 0:00:49]} 78. Kf2 {[%emt 0:00:38]} Rf8 {[%emt 0:00:23]} 79. Rd7 {[%emt 0:01:07]} Kg7 {[%emt 0:03:50]} 80. Kg2 {[%emt 0:01:28]} Kg6 {[%emt 0:01:41]} 81. Kg3 {[%emt 0:00:08]} Nf4 {[%emt 0:02:27]} 82. Rd6+ {[%emt 0:00:03]} f6 {[%emt 0:00:03]} 83. Ra5 {[%emt 0:00:24]} Rf7 {[%emt 0:00:23]} 84. Ra2 {[%emt 0:01:19]} Rb7 {[%emt 0:00:43]} 85. Raa6 {[%emt 0:00:21]} Rf7 {[%emt 0:00:22]} 86. Kf2 {[%emt 0:00:20]} Kg7 {[%emt 0:00:32]} 87. Ra2 {[%emt 0:00:47]} Kg6 {[%emt 0:00:32]} 88. Rad2 {[%emt 0:00:32]} Rh7 {[%emt 0:00:59]} (88... Re7 $142 89. Rd7 Re6) 89. Rd7 $18 {[%emt 0:00:19]} Rh2+ {[%emt 0:00:52]} 90. Ke3 {[%emt 0:00:07]} Rh8 {[%emt 0:00:12]} 91. Rd8 {[%emt 0:00:43]} (91. Re7 $142) 91... Rh1 $2 {[%emt 0:01:28]} (91... Rxd8 {was worth a try.} 92. Rxd8 Kf7) 92. Rd1 {[%emt 0:00:46]} (92. R2d7 $142 {Intending Rg8+ and mate.} Re1+ 93. Kd2 Re2+ 94. Kd1) 92... Rh2 {[%emt 0:00:34]} (92... Rxd1 $142 93. Rxd1 Kf7) 93. R8d2 {[%emt 0:00:13]} Rh7 {[%emt 0:00:50]} 94. Rd7 {[%emt 0:00:16]} Rh2 {[%emt 0:00:14]} 95. R1d2 $2 {[%emt 0:00:11]} (95. Ra7) 95... Rh8 $1 $18 {[%emt 0:01:13]} 96. Ra7 {[%emt 0:00:19]} Re8+ {[%emt 0:01:35]} 97. Kf2 {[%emt 0:00:06]} Rh8 $2 {[%emt 0:00:25]} (97... Rb8 98. Rdd7 Ne6) 98. Rdd7 $18 {[%emt 0:00:14]} Rg8 {[%emt 0:01:35]} 99. Ke3 {[%emt 0:01:11]} Ng2+ {[%emt 0:01:00]} 100. Ke4 {[%emt 0:00:17]} Nf4 {[%emt 0:00:08]} 101. Re7 {[%emt 0:00:48]} Ng2 {[%emt 0:00:20]} 102. Ra2 {[%emt 0:01:57]} Nf4 {[%emt 0:00:05]} 103. Rh2 $2 {[%emt 0:01:01]} (103. Rd2 Rb8 104. Rdd7) 103... Ra8 {[%emt 0:00:09] [#]} 104. Rd2 $1 {[%emt 0:00:56]} Ra4+ {[%emt 0:02:18]} (104... f5+ {keeps fighting.} 105. gxf5+ Kf6) 105. Rd4 $18 {[%emt 0:00:33]} Ra8 $2 {[%emt 0:00:13]} (105... Ra2 106. Rdd7 Re2+ 107. Kd4 Ne6+ 108. Kd5 Nf4+ 109. Kc4 Rxe7 110. Rxe7 Nh3) 106. Rdd7 $18 {[%emt 0:00:09]} Rg8 {[%emt 0:00:04]} 107. Kd4 {[%emt 0:00:55]} Ng2 {[%emt 0:00:44]} 108. Kd5 {[%emt 0:00:34]} Nh4 {[%emt 0:01:10]} 109. Re3 $2 {[%emt 0:00:02]} (109. Ke4 Ng2 110. Rh7) 109... Ng2 {[%emt 0:00:42]} 110. Rc3 {[%emt 0:00:22]} Nf4+ {[%emt 0:01:11]} 111. Kd6 {[%emt 0:00:16]} Re8 $2 {[%emt 0:01:02]} (111... Ra8 112. Re3 Rg8) 112. Rcc7 $18 {[%emt 0:00:49]} Re6+ {[%emt 0:00:31]} 113. Kc5 {[%emt 0:00:02]} Re5+ {[%emt 0:00:03]} 114. Kc4 {[%emt 0:00:36]} Ne6 {[%emt 0:00:02]} 115. Rc8 {[%emt 0:00:49]} f5 {[%emt 0:01:30]} 116. Rd5 {[%emt 0:01:07]} Kf6 {[%emt 0:00:17]} 117. Rh8 $2 {[%emt 0:01:38]} (117. Rxe5 Kxe5 118. Re8) 117... fxg4 $2 {[%emt 0:01:12]} (117... Rxd5 $18 118. Kxd5 Nf4+ 119. Kd4 Ng6) 118. Rh6+ {[%emt 0:00:20]} Kf5 {[%emt 0:00:03]} 119. fxg4+ {[%emt 0:00:07]} Ke4 {[%emt 0:00:45]} 120. Rxe5+ {[%emt 0:00:02]} Kxe5 {[%emt 0:00:06]} 121. Kd3 {[%emt 0:00:09]} Nf4+ $2 {[%emt 0:00:53] [#]} (121... Nd8 $16 122. Ke3 Nf7) 122. Ke3 $1 {[%emt 0:00:07]} Nd5+ {[%emt 0:00:19]} 123. Kf3 {[%emt 0:00:03]} Nf4 {[%emt 0:00:07]} 124. Ra6 {[%emt 0:00:16]} Ne6 {[%emt 0:03:03]} 125. Ra5+ {[%emt 0:00:12]} Kf6 {[%emt 0:00:05]} 126. Ke4 {[%emt 0:00:06]} Nc7 {[%emt 0:00:04]} 127. Ra7 {[%emt 0:00:45]} Nb5 {[%emt 0:00:59]} 128. Ra6+ {[%emt 0:00:05]} Ke7 {[%emt 0:00:05]} 129. Kf5 {[%emt 0:00:05]} Nd4+ {[%emt 0:00:09]} 130. Kxg5 {[%emt 0:00:06]} Kf7 {[%emt 0:00:02]} 131. Ra7+ {[%emt 0:00:25]} 1-0

[Event "USA Championship 2022"]
[Site "Saint Louis"]
[Date "2022.10.17"]
[Round "11.5"]
[White "Niemann, Hans Moke"]
[Black "Lenderman, Aleksandr"]
[Result "1-0"]
[ECO "D11"]
[WhiteElo "2699"]
[BlackElo "2535"]
[Annotator "TA"]
[PlyCount "89"]
[EventDate "2022.09.05"]
[EventType "tourn"]
[EventCountry "USA"]
[SourceTitle "playchess.com"]
[Source "ChessBase"]
[SourceQuality "1"]
[TimeControl "40/5400+30:1800+30"]

{[%evp 13,89,28,26,31,29,22,10,10,20,31,38,8,8,8,10,15,11,20,10,26,19,11,9,9,12,8,16,6,37,35,44,39,42,37,39,35,46,19,18,8,8,12,35,6,18,8,21,21,25,0,6,8,18,0,0,8,16,0,0,0,379,384,360,312,2108,1964,29976,29978,29978,29979,29979,29980,29979,29980,29980,29974,29985,29986]} 1. d4 {[%emt 0:05:37]} d5 {[%emt 0:00:04]} 2. c4 {[%emt 0:00:08]} c6 {[%emt 0:00:04]} 3. Nf3 {[%emt 0:00:08]} Nf6 {[%emt 0:00:04]} 4. e3 {[%emt 0:01:12]} Bg4 {[%emt 0:00:04]} 5. Nc3 {[%emt 0:02:52]} e6 {[%emt 0:01:26]} 6. h3 {[%emt 0:00:45]} Bh5 {[%emt 0:00:05]} 7. g4 {[%emt 0:00:31]} Bg6 {[%emt 0:00:03]} 8. Ne5 {[%emt 0:00:12] D11: Slav Defence: 3 Nf3 sidelines and 3...Nf6 4 e3 Bg4.} Nbd7 {[%emt 0:00:09]} 9. Nxg6 {[%emt 0:00:25]} hxg6 {[%emt 0:00:05]} 10. g5 {[%emt 0:00:06] The position is equal.} Ne4 {[%emt 0:00:06]} 11. Nxe4 {[%emt 0:00:06]} dxe4 {[%emt 0:00:04]} 12. h4 {[%emt 0:00:08]} Bb4+ {[%emt 0:00:04]} 13. Bd2 {[%emt 0:00:06]} Qa5 {[%emt 0:01:02][%cal Od7e5]} 14. a3 {[%emt 0:00:39]} Bxd2+ {[%emt 0:00:05]} 15. Qxd2 {[%emt 0:00:04]} Qxd2+ {[%emt 0:00:06]} 16. Kxd2 {[%emt 0:00:05]} f5 {[%emt 0:00:07]} 17. c5 {[%emt 0:00:29]} Ke7 {[%emt 0:00:55]} 18. b4 {[%emt 0:00:22]} Rad8 {[%emt 0:00:42]} 19. Kc3 {[%emt 0:00:23]} e5 {[%emt 0:00:08]} 20. Bc4 {[%emt 0:02:59]} exd4+ {[%emt 0:00:55]} (20... Nf8 $5 {[%cal Re5d4]}) 21. exd4 {[%emt 0:00:06]} Nf8 {[%emt 0:00:06] [#]} 22. f3 $146 {[%emt 0:01:44]} ({Predecessor:} 22. Rad1 Ne6 23. d5 cxd5 24. Bxd5 Rd7 25. Bxe6 Kxe6 26. Rxd7 Kxd7 27. Rd1+ Kc7 28. Rd6 Rxh4 29. Rxg6 {1-0 (44) So,W (2765)-Navara,D (2738) Saint Louis 2019}) 22... exf3 {[%emt 0:08:31]} 23. Raf1 {[%emt 0:00:35]} Kd7 {[%emt 0:04:29]} (23... Ne6 $2 24. Re1 Rd5 25. Bxd5 cxd5 26. Kd3 $18) 24. Rxf3 {[%emt 0:00:21] Threatens to win with Re3.} Ne6 {[%emt 0:00:33]} 25. Re1 {[%emt 0:01:02]} Nc7 {[%emt 0:02:18]} 26. Rh3 {[%emt 0:19:08]} Rde8 {[%emt 0:04:16]} 27. Rxe8 {[%emt 0:01:06]} Kxe8 $11 {[%emt 0:01:17][%mdl 4096] Endgame KRB-KRN} 28. a4 {[%emt 0:00:48]} Kd7 {[%emt 0:13:32]} 29. b5 {[%emt 0:06:41]} Ne6 {[%emt 0:03:07] Hoping for ...Nxg5.} 30. Kb4 {[%emt 0:03:52]} Nf4 {[%emt 0:02:40]} (30... Nxd4 $2 31. Rd3 $18) 31. Rh2 {[%emt 0:04:15]} (31. Rh1 $5 {[%cal Ra4a5]}) 31... Kc7 {[%emt 0:06:07]} 32. a5 {[%emt 0:02:23]} cxb5 {[%emt 0:05:27]} 33. Bxb5 {[%emt 0:00:12]} a6 {[%emt 0:06:54]} 34. Ba4 {[%emt 0:00:26]} Ne6 $1 {[%emt 0:04:35]} 35. d5 {[%emt 0:01:22]} Nxg5 {[%emt 0:00:31]} 36. d6+ {[%emt 0:00:08]} Kd8 $2 {[%emt 0:04:39][%mdl 8192] [#]} (36... Kc8 $11) 37. c6 $1 $18 {[%emt 0:03:30]} bxc6 {[%emt 0:00:41] [#] aiming for ...Kd7.} 38. Kc5 $1 {[%emt 0:00:07]} ({Weaker is} 38. Bxc6 Ne4 $11) 38... f4 $2 {[%emt 0:12:58]} (38... Rh6) 39. Rb2 {[%emt 0:09:11]} ({Inferior is} 39. Bxc6 Rh5 40. Kb6 Nf7 $11) 39... Ne6+ {[%emt 0:00:27]} 40. Kxc6 {[%emt 0:00:15][%cal Rb2b8] White mates.} Nd4+ {[%emt 0:00:09]} 41. Kd5 {[%emt 0:30:07][%cal Rb2b8]} Nb5 {[%emt 0:30:07]} 42. Bxb5 {[%emt 0:00:04]} axb5 {[%emt 0:00:18]} 43. Kc6 {[%emt 0:00:07]} Ke8 {[%emt 0:03:30]} 44. Kc7 {[%emt 0:00:17]} Kf7 {[%emt 0:00:04]} 45. d7 {[%emt 0:00:03] Weighted Error Value: White=0.05 (flawless) /Black=0.31} 1-0

[Event "USA Championship 2022"]
[Site "Saint Louis"]
[Date "2022.10.17"]
[Round "11.6"]
[White "Shankland, Sam"]
[Black "Aronian, Levon"]
[Result "1/2-1/2"]
[ECO "E04"]
[WhiteElo "2712"]
[BlackElo "2755"]
[Annotator "TA"]
[PlyCount "30"]
[EventDate "2022.09.05"]
[EventType "tourn"]
[EventCountry "USA"]
[SourceTitle "playchess.com"]
[Source "ChessBase"]
[SourceQuality "1"]
[TimeControl "40/5400+30:1800+30"]

{[%evp 11,30,0,0,-5,0,0,0,0,0,-6,-6,-4,-2,-3,-7,-7,0,0,0,-8,0]} 1. d4 {[%emt 0:00:11]} Nf6 {[%emt 0:00:06]} 2. c4 {[%emt 0:00:05]} e6 {[%emt 0:00:05]} 3. Nf3 {[%emt 0:00:07]} d5 {[%emt 0:00:05]} 4. g3 {[%emt 0:00:06]} dxc4 {[%emt 0:00:09]} 5. Bg2 {[%emt 0:00:05]} c6 {[%emt 0:00:09]} 6. O-O {[%emt 0:03:59]} b5 {[%emt 0:00:40] The position is equal.} 7. Ne5 {[%emt 0:01:04] E04: Open Catalan: 5 Nf3.} Bb7 {[%emt 0:00:31]} 8. a4 {[%emt 0:00:09] [#] And now axb5 would win.} a6 {[%emt 0:00:07]} 9. b3 {[%emt 0:02:22]} cxb3 {[%emt 0:00:06]} 10. Qxb3 {[%emt 0:01:08]} Qxd4 {[%emt 0:01:21]} 11. Bb2 {[%emt 0:00:06]} Qb4 {[%emt 0:00:11]} 12. Qc2 {[%emt 0:00:31] [#] aiming for axb5.} Qc5 {[%emt 0:00:11] [#]} 13. Qb3 $146 {[%emt 0:10:39]} ({Predecessor:} 13. Qd3 Be7 14. Nd2 Nd5 15. Ne4 Qb6 16. Nxf7 Kxf7 17. Qf3+ Bf6 18. Ng5+ Ke7 19. e4 Bxg5 20. exd5 cxd5 21. Rfe1 Nd7 22. Qg4 {½-½ (54) Tabatabaei,M (2643)-Dvirnyy,D (2492) Cattolica 2022}) 13... Qb4 {[%emt 0:00:29] Against Nd2} 14. Qc2 {[%emt 0:00:09] Hoping for axb5.} Qc5 {[%emt 0:00:05]} 15. Qb3 {[%emt 0:06:28]} Qb4 {[%emt 0:00:26] An interesting draw.  Weighted Error Value: White=0.01 (flawless) /Black=0.02 (flawless)} 1/2-1/2

[Event "USA Championship 2022"]
[Site "Saint Louis"]
[Date "2022.10.17"]
[Round "11.7"]
[White "So, Wesley"]
[Black "Moradiabadi, Elshan"]
[Result "1-0"]
[ECO "B28"]
[WhiteElo "2774"]
[BlackElo "2534"]
[Annotator "TA"]
[PlyCount "71"]
[EventDate "2022.09.05"]
[EventType "tourn"]
[EventCountry "USA"]
[SourceTitle "playchess.com"]
[Source "ChessBase"]
[SourceQuality "1"]
[TimeControl "40/5400+30:1800+30"]

{[%evp 9,71,23,25,42,59,40,60,58,58,66,65,45,50,44,37,41,42,30,47,18,36,14,10,16,73,66,149,127,137,136,178,182,178,180,182,177,164,171,170,165,206,197,194,204,202,206,199,199,205,205,208,206,254,254,245,240,241,236,287,254,486,456,469,456]} 1. e4 {[%emt 0:00:01]} c5 {[%emt 0:00:54][%cal Bc7c5,Bc5d4][%mdl 32]} 2. Nf3 {[%emt 0:00:06]} a6 {[%emt 0:00:04]} 3. c3 {[%emt 0:01:25]} d5 {[%emt 0:00:19]} 4. exd5 {[%emt 0:01:16]} Nf6 {[%emt 0:00:30]} 5. d4 {[%emt 0:01:23]} cxd4 {[%emt 0:00:10]} 6. Qa4+ {[%emt 0:04:53] B28: Sicilian: 2 Nf3 a6 (O'Kelly Variation).} Qd7 {[%emt 0:00:55]} 7. Qxd7+ {[%emt 0:00:58]} Bxd7 {[%emt 0:00:18]} 8. c4 {[%emt 0:00:45] White is slightly better.} (8. Nxd4 Nxd5 9. Bc4 e6 $11) 8... e6 {[%emt 0:00:01]} 9. dxe6 {[%emt 0:00:05]} (9. Nxd4 exd5 10. cxd5 Nxd5 $11) 9... fxe6 {[%emt 0:00:02]} 10. Nxd4 {[%emt 0:00:05][%cal Bf3d4,Bd4c2,Bc2e3][%mdl 32]} e5 {[%emt 0:00:01]} 11. Nc2 {[%emt 0:21:52]} Nc6 {[%emt 0:00:04]} 12. Nc3 {[%emt 0:00:05][%cal Bb1c3,Bc3d5,Bd5b6][%mdl 32] [#]} Bf5 $146 {[%emt 0:01:53]} ({Predecessor:} 12... O-O-O 13. Be2 Nd4 14. Ne3 Bb4 15. Bd2 Bc6 16. Bd1 Rhf8 17. Rc1 Ne6 18. Ned5 Bxc3 19. Bxc3 {1-0 (46) Pridorozhni,A (2579)-Kazakovskiy,V (2399) St Petersburg 2016}) 13. Ne3 {[%emt 0:00:11]} Bg6 {[%emt 0:00:01]} 14. Bd2 {[%emt 0:06:58]} Bc5 {[%emt 0:01:57]} 15. O-O-O {[%emt 0:01:31]} O-O {[%emt 0:01:49]} 16. f3 {[%emt 0:03:54]} Nd4 {[%emt 0:14:36]} (16... e4 $11 {remains equal.}) 17. Ncd5 $16 {[%emt 0:33:34]} Rfd8 {[%emt 0:26:27] White now steadily converts the win.} (17... Nc6 $14) 18. b4 $1 {[%emt 0:00:00]} Bf8 {[%emt 0:00:28] [#]} 19. Nb6 {[%emt 0:08:53]} Ra7 {[%emt 0:02:39][%cal Oa6a5]} 20. c5 {[%emt 0:00:00]} a5 {[%emt 0:07:20]} 21. Bc4+ {[%emt 0:00:00]} Bf7 {[%emt 0:06:24]} 22. Kb2 {[%emt 0:00:00]} ({Inferior is} 22. bxa5 Bxc5 23. Bxf7+ Kxf7 $11) 22... axb4 {[%emt 0:00:00]} 23. Bxb4 {[%emt 0:03:32]} Bxc4 {[%emt 0:03:37]} 24. Nexc4 {[%emt 0:00:00]} e4 {[%emt 0:06:54]} 25. a4 {[%emt 0:00:00]} exf3 {[%emt 0:00:00]} 26. gxf3 {[%emt 0:00:00]} Be7 {[%emt 0:00:00]} 27. Rhe1 {[%emt 0:00:00][%cal Bh1e1,Be1d1,Bd1d7][%mdl 32]} Nc6 {[%emt 0:00:00]} (27... Nxf3 $2 28. c6 bxc6 29. Rxe7 $18) 28. Rxd8+ {[%emt 0:00:00]} Bxd8 {[%emt 0:00:00]} 29. Bc3 {[%emt 0:00:00]} Ra6 {[%emt 0:00:00] [#]} 30. Rd1 $1 {[%emt 0:00:00]} Ne8 {[%emt 0:00:35]} 31. Rd7 {[%emt 0:03:15]} Be7 {[%emt 0:00:34]} 32. Bd4 {[%emt 0:03:24]} ({Much less strong is} 32. Rxb7 Bxc5 33. a5 Ra7 34. Rxa7 Nxa7) 32... Kf8 {[%emt 0:00:24]} 33. Bf2 {[%emt 0:00:32]} Nd8 {[%emt 0:01:04]} 34. Nd5 {[%emt 0:01:38]} Nc6 {[%emt 0:01:42]} (34... Re6 35. Nxe7 Re2+ 36. Kc3 Rxf2 37. Ng6+ (37. Rxd8 Kxe7 38. Rb8 Nc7 $18) 37... hxg6) 35. Nxe7 $18 {[%emt 0:01:06]} Nxe7 {[%emt 0:00:04]} 36. Nb6 {[%emt 0:00:20] Weighted Error Value: White=0.03 (flawless) /Black=0.21 (precise)} 1-0

[Event "USA Championship 2022"]
[Site "Saint Louis"]
[Date "2022.10.18"]
[Round "12.1"]
[White "Yoo, Christopher Woojin"]
[Black "Robson, Ray"]
[Result "1/2-1/2"]
[ECO "C67"]
[WhiteElo "2563"]
[BlackElo "2690"]
[Annotator "TA"]
[PlyCount "67"]
[EventDate "2022.09.05"]
[EventType "tourn"]
[EventCountry "USA"]
[SourceTitle "playchess.com"]
[Source "ChessBase"]
[SourceQuality "1"]
[TimeControl "40/5400+30:1800+30"]

{[%evp 16,67,20,8,18,-51,-45,-48,-50,-46,-61,-61,-68,-52,-23,-39,-17,-39,0,0,0,0,0,0,0,0,0,0,0,0,0,0,0,0,0,-1,0,0,0,0,0,0,0,0,0,0,0,0,0,0,0,0,0,0]} 1. e4 {[%emt 0:00:13]} e5 {[%emt 0:04:13]} 2. Nf3 {[%emt 0:00:05]} Nc6 {[%emt 0:00:19]} 3. Bb5 {[%emt 0:00:06]} Nf6 {[%emt 0:00:32]} 4. O-O {[%emt 0:00:13]} Nxe4 {[%emt 0:00:32]} 5. Re1 {[%emt 0:00:10]} Nd6 {[%emt 0:00:29]} 6. Nxe5 {[%emt 0:00:06]} Be7 {[%emt 0:00:50]} 7. Bf1 {[%emt 0:00:04]} Nxe5 {[%emt 0:01:07]} 8. Rxe5 {[%emt 0:00:06]} O-O {[%emt 0:00:29]} 9. d4 {[%emt 0:00:05]} Bf6 {[%emt 0:02:09] C67: Ruy Lopez: Berlin Defence: 4 0-0 Nxe4.} 10. Bd3 {[%emt 0:00:05]} ({Better is} 10. Re1 $11) 10... Bxe5 $15 {[%emt 0:02:25]} 11. dxe5 {[%emt 0:00:06]} Ne8 {[%emt 0:00:26] Black is slightly better.} 12. Nc3 {[%emt 0:00:03]} d6 {[%emt 0:03:40]} 13. Qh5 {[%emt 0:00:05][%csl Gd3][%cal Rh5h7] [#]} g6 {[%emt 0:01:44]} 14. Qh6 {[%emt 0:00:04]} Qe7 {[%emt 0:11:56]} (14... dxe5 $2 15. Bg5 Nf6 16. Qh4 $18) (14... Be6 $5 {[%cal Rd6e5]} 15. Bg5 Qd7 $15) 15. exd6 {[%emt 0:00:05]} Nxd6 {[%emt 0:02:07] [#] Strongly threatening ...Bf5.} ({Of course not} 15... Qe1+ 16. Bf1 Qe6 17. dxc7 $14) 16. Bg5 $146 {[%emt 0:00:56]} ({Predecessor:} 16. Nd5 Qe5 17. c4 Nf5 18. Qf4 Qxf4 19. Bxf4 c6 20. Nc7 Rb8 21. Nd5 Ra8 22. Nc7 Rb8 23. Nd5 {½-½ (23) Sanal,V (2581)-Malakhov,V (2669) Ruma 2020}) 16... f6 {[%emt 0:23:28]} 17. Nd5 {[%emt 0:00:10] The position is equal.} Qg7 {[%emt 0:01:01]} 18. Qxg7+ {[%emt 0:00:25]} Kxg7 {[%emt 0:00:02]} 19. Nxc7 {[%emt 0:01:10] [#] Threatens to win with Bf4.} fxg5 {[%emt 0:03:03]} 20. Nxa8 {[%emt 0:00:04]} Bf5 {[%emt 0:04:20]} 21. Nc7 {[%emt 0:01:54]} Rc8 $1 {[%emt 0:00:32]} 22. Nd5 {[%emt 0:00:45]} Bxd3 {[%emt 0:00:34]} 23. cxd3 $11 {[%emt 0:00:04][%mdl 4096] Endgame KRN-KRN} Rc2 {[%emt 0:00:34]} 24. g4 {[%emt 0:06:28]} Rxb2 {[%emt 0:01:57]} 25. Re1 {[%emt 0:01:29]} Rxa2 {[%emt 0:08:00]} 26. Re7+ {[%emt 0:00:06]} Nf7 {[%emt 0:02:54]} 27. Rxb7 {[%emt 0:02:01]} Rd2 {[%emt 0:01:06]} 28. Rxa7 {[%emt 0:02:34]} Rxd3 {[%emt 0:00:18] aiming for ...Rd1+.} 29. Nc7 {[%emt 0:02:59]} Kf6 {[%emt 0:04:14]} 30. Ne8+ {[%emt 0:04:41]} Ke6 {[%emt 0:00:08]} 31. Ng7+ {[%emt 0:02:04]} Kf6 {[%emt 0:00:09]} 32. Ne8+ {[%emt 0:00:04]} Ke6 {[%emt 0:00:09]} 33. Ng7+ {[%emt 0:01:58]} Kf6 {[%emt 0:00:11]} 34. Ne8+ {[%emt 0:00:03] Weighted Error Value: White=0.07 (flawless) /Black=0.07 (flawless)} 1/2-1/2